bitfinex-derivatives/quotes_ETHF0:USTF0_20220103
["timestamp","ask_amount","ask_price","bid_price","bid_amount"]
[1641246793552,1.25342487,3725.5,3725.4,2.362938]
[1641246793752,3.8847625,3726.1,3725.4,2.362938]
[1641246794960,1.50805769,3726.4,3725.8,1.34114056]
[1641246795153,3.81445922,3726.7,3725.8,1.34114056]
[1641246795353,1.51380397,3726.5,3725.8,1.34114056]
[1641246795556,1.51380397,3726.5,3726.2,2.00479]
[1641246795753,1.51380397,3726.5,3726.3,0.358148]
[1641246796755,1.80966922,3726.8,3726.3,0.358148]
[1641246796956,0.55573682,3727.0,3726.3,0.358148]
[1641246797156,0.55573682,3727.0,3726.3,0.128157]
[1641246797357,0.55573682,3727.0,3726.2,2.00479]
[1641246799560,0.55573682,3727.0,3726.3,0.128157]
[1641246799761,0.55573682,3727.0,3726.3,0.788457]
[1641246799963,0.55573682,3727.0,3726.3,2.12942671]
[1641246800363,0.55573682,3727.0,3726.3,0.788457]
[1641246800959,1.80966922,3727.4,3726.3,0.788457]
[1641246801161,1.13091328,3727.7,3726.3,0.788457]
[1641246801361,1.13091328,3727.7,3726.4,1.34091936]
[1641246801559,1.13091328,3727.7,3727.3,2.00479]
[1641246801961,0.55573682,3727.6,3727.3,2.00479]
[1641246803564,0.55573682,3727.5,3727.3,2.00479]
[1641246804167,0.55573682,3727.4,3727.3,2.00479]
[1641246806168,0.55573682,3727.4,3726.4,22.94761486]
[1641246806169,2.05473682,3727.4,3726.4,1.45991486]
[1641246806371,1.499,3727.1,3726.4,1.45991486]
[1641246806569,2.319,3727.1,3726.4,1.45991486]
[1641246806771,2.319,3727.1,3726.2,2.00479]
[1641246807173,0.70378498,3727.0,3726.2,2.00479]
[1641246808278,1.51489941,3726.9,3726.3,0.128157]
[1641246809199,2.07063623,3726.9,3726.3,0.128157]
[1641246809380,0.55573682,3726.9,3726.3,0.128157]
[1641246811085,0.55573682,3726.9,3726.3,1.58807186]
[1641246811086,0.55573682,3726.8,3726.3,1.58807186]
[1641246811285,0.55573682,3726.8,3726.3,1.45991486]
[1641246811686,0.55573682,3726.8,3726.4,1.45991486]
[1641246813288,0.55573682,3726.7,3726.2,3.46470486]
[1641246814087,1.7675216,3726.6,3726.2,2.00479]
[1641246815794,1.7675216,3726.5,3726.2,2.00479]
[1641246816198,0.82196459,3726.4,3726.2,2.00479]
[1641246816795,0.82196459,3726.4,3726.3,0.229991]
[1641246817197,2.58948619,3726.4,3726.3,0.229991]
[1641246817596,1.7675216,3726.4,3726.3,0.229991]
[1641246819000,0.55573682,3726.4,3726.3,0.229991]
[1641246822002,0.55573682,3726.4,3726.2,2.00479]
[1641246822302,0.55573682,3726.4,3726.3,0.229991]
[1641246822903,1.21178478,3726.6,3726.3,0.229991]
[1641246823908,1.21178478,3726.7,3726.3,0.229991]
[1641246824905,1.21178478,3726.6,3726.3,0.229991]
[1641246825106,1.74278478,3726.6,3726.1,1.45991486]
[1641246825608,1.74278478,3726.6,3726.1,3.46470486]
[1641246825808,1.74278478,3726.6,3726.1,3.59286186]
[1641246826308,1.74278478,3726.6,3726.1,3.46470486]
[1641246827010,1.74602441,3726.5,3726.1,2.00479]
[1641246828010,2.41612441,3726.5,3726.1,2.00479]
[1641246828410,0.6701,3726.5,3726.1,2.00479]
[1641246831213,1.499,3726.3,3725.7,2.00479]
[1641246833516,0.53306286,3726.2,3725.7,2.00479]
[1641246833719,0.90016979,3726.1,3725.7,2.00479]
[1641246839817,0.53438442,3726.0,3725.7,2.00479]
[1641246840018,1.21178478,3725.9,3725.7,2.00479]
[1641246840418,1.21178478,3725.9,3725.8,0.229991]
[1641246840617,1.21178478,3725.9,3725.7,2.00479]
[1641246842820,1.21178478,3725.9,3725.7,2.234781]
[1641246843621,1.21178478,3725.9,3725.7,2.00479]
[1641246845522,1.21178478,3725.9,3725.2,2.00479]
[1641246845726,3.21657478,3725.8,3725.3,1.46949784]
[1641246847123,3.21657478,3725.8,3725.2,2.00479]
[1641246847526,1.21178478,3725.5,3725.2,2.00479]
[1641246847726,1.72938478,3725.5,3725.2,2.00479]
[1641246847925,1.72938478,3725.5,3725.2,1.97979]
[1641246848730,1.72938478,3725.5,3725.2,1.95049]
[1641246848928,1.7461692,3725.4,3725.2,1.95049]
[1641246851431,1.21178478,3725.3,3724.8,0.7575869]
[1641246851828,2.00479,3724.9,3724.8,0.7575869]
[1641246852230,2.00479,3724.9,3724.5,0.3975]
[1641246853429,2.00479,3724.9,3723.9,2.40629]
[1641246854233,0.53438442,3724.8,3723.9,2.40629]
[1641246855334,0.53438442,3724.8,3724.4,1.47187068]
[1641246857234,3.21657478,3724.9,3724.4,1.47187068]
[1641246857434,2.00479,3724.9,3724.6,1.47187068]
[1641246857635,2.00479,3724.9,3724.7,0.229991]
[1641246858437,2.00479,3724.9,3724.8,1.47187068]
[1641246859536,2.00479,3724.9,3724.7,1.70186168]
[1641246859935,2.00479,3724.9,3724.7,1.47187068]
[1641246860538,2.00479,3724.9,3724.8,1.47187068]
[1641246861640,2.00479,3724.9,3724.8,0.229991]
[1641246862643,2.00479,3724.9,3724.8,1.70186168]
[1641246863041,1.21178478,3725.3,3724.8,1.70186168]
[1641246863239,1.21178478,3725.3,3724.8,1.47187068]
[1641246863640,1.21178478,3725.3,3723.9,3.29138022]
[1641246863941,2.00479,3724.8,3724.0,2.88988022]
[1641246864139,2.00479,3724.8,3724.1,0.128157]
[1641246865742,1.21178478,3725.4,3724.1,0.128157]
[1641246866343,2.00479,3724.8,3724.1,0.128157]
[1641246868045,2.00479,3724.8,3724.1,3.01803722]
[1641246868245,2.00479,3725.2,3724.1,3.01803722]
[1641246868544,2.00479,3725.2,3724.7,2.00479]
[1641246875755,22.43283763,3725.7,3724.1,0.128157]
[1641246876457,2.00479,3725.5,3724.7,2.00479]
[1641246877156,22.43283763,3725.7,3724.7,1.5]
[1641246877358,22.2588,3726.1,3724.7,0.8296]
[1641246877559,22.2588,3726.1,3724.8,2.84150579]
[1641246877758,1.21178478,3726.3,3724.8,1.34150579]
[1641246877961,1.21178478,3726.3,3725.2,1.34136183]
[1641246878560,2.00479,3726.1,3725.3,2.00479]
[1641246878759,2.00479,3726.1,3725.4,0.128157]
[1641246879663,2.00479,3726.1,3725.3,2.00479]
[1641246880966,2.00479,3726.1,3724.9,3.46744556]
[1641246881163,2.68379,3726.1,3724.9,3.46744556]
[1641246881969,1.499,3725.9,3724.9,3.46744556]
[1641246882170,2.68379,3726.1,3724.9,3.46744556]
[1641246882374,0.7897982,3726.0,3724.9,3.46744556]
[1641246882572,2.00479,3725.5,3724.9,3.46744556]
[1641246882976,2.00479,3725.5,3724.9,2.00479]
[1641246884374,1.09833143,3725.4,3724.9,2.00479]
[1641246884574,1.09833143,3725.4,3724.9,2.132947]
[1641246885672,1.09833143,3725.4,3724.9,2.00479]
[1641246887176,1.09833143,3725.4,3725.0,1.59081256]
[1641246888377,1.09833143,3725.4,3725.2,1.46265556]
[1641246889178,1.09833143,3725.4,3725.1,1.46265556]
[1641246890279,0.54403928,3725.3,3725.0,1.46265556]
[1641246890479,1.30483928,3725.3,3725.0,1.46265556]
[1641246891082,1.30483928,3725.3,3724.9,1.85735556]
[1641246892080,0.54403928,3725.2,3724.9,1.85735556]
[1641246894081,0.54403928,3725.2,3725.0,0.229991]
[1641246894481,0.54403928,3725.2,3724.9,1.85735556]
[1641246898792,2.31011621,3725.4,3725.0,1.46265556]
[1641246898991,1.09833143,3725.4,3725.0,1.46265556]
[1641246900591,0.54407343,3725.3,3725.0,1.46265556]
[1641246900790,1.75585821,3725.3,3725.1,0.229991]
[1641246900990,1.75585821,3725.3,3724.8,1.59081256]
[1641246901392,1.75585821,3725.3,3724.8,1.46265556]
[1641246901601,0.54407343,3725.3,3725.0,1.46265556]
[1641246902591,1.09833143,3725.4,3725.0,1.46265556]
[1641246902892,1.09833143,3725.4,3724.7,2.00479]
[1641246902893,1.09833143,3725.4,3724.9,1.46265556]
[1641246903691,2.00479,3725.5,3724.9,1.46265556]
[1641246904293,2.00479,3725.5,3725.0,1.46265556]
[1641246905594,2.00479,3725.5,3724.9,1.59081256]
[1641246906499,2.00479,3725.5,3725.0,1.46265556]
[1641246906896,2.00479,3725.5,3725.0,2.01125556]
[1641246907096,1.21178478,3725.7,3725.1,1.5]
[1641246907595,1.08928478,3725.7,3725.1,1.5]
[1641246907795,1.51530125,3726.0,3725.5,1.5]
[1641246907996,2.00479,3726.5,3725.3,3.50479]
[1641246908197,2.00479,3726.5,3725.5,1.34124309]
[1641246908598,2.00479,3726.5,3725.3,3.50479]
[1641246908800,2.00479,3726.5,3725.5,1.5]
[1641246909000,2.00479,3726.5,3725.5,1.34124309]
[1641246909198,1.80966922,3726.8,3725.5,1.34124309]
[1641246909797,1.80966922,3726.8,3726.2,2.00479]
[1641246910001,0.52036415,3727.0,3726.2,2.00479]
[1641246910200,0.52036415,3727.0,3726.3,0.128157]
[1641246915004,0.52036415,3727.0,3726.2,2.00479]
[1641246915304,1.34106415,3727.0,3726.2,2.00479]
[1641246916909,0.52036415,3726.9,3726.2,2.00479]
[1641246919110,2.03410323,3726.9,3726.2,2.00479]
[1641246919308,1.21099084,3726.7,3726.2,2.00479]
[1641246919508,0.8841595,3726.6,3726.2,2.00479]
[1641246921211,0.52036415,3726.5,3726.2,2.00479]
[1641246922911,0.52036415,3726.5,3726.3,0.229991]
[1641246926514,0.52036415,3726.5,3726.2,2.132947]
[1641246926716,0.52036415,3726.5,3726.3,0.229991]
[1641246927316,0.52036415,3726.6,3726.3,0.229991]
[1641246927516,0.52036415,3726.6,3726.2,2.132947]
[1641246927718,0.52036415,3726.6,3726.2,2.00479]
[1641246928817,1.73135499,3726.7,3726.2,2.00479]
[1641246929717,1.73135499,3726.7,3726.6,1.5]
[1641246929918,1.80966922,3727.3,3726.6,5.07562844]
[1641246930117,1.80966922,3727.3,3726.9,1.5]
[1641246930323,2.26208653,3727.6,3727.1,2.42888293]
[1641246930621,2.26208653,3727.6,3727.2,1.5]
[1641246930821,2.26208653,3727.6,3727.5,31.95871795]
[1641246931021,2.26208653,3727.6,3727.5,32.18870895]
[1641246931225,1.81616536,3728.1,3727.5,32.18870895]
[1641246931824,1.81616536,3728.1,3728.0,2.84031908]
[1641246932122,1e-08,3728.4,3728.1,0.001]
[1641246932323,1e-08,3728.4,3728.2,0.128157]
[1641246932723,3.01611537,3728.6,3728.1,0.001]
[1641246933025,0.6444,3728.4,3728.1,0.001]
[1641246933224,0.6444,3728.4,3728.2,0.229991]
[1641246934926,20.5056,3729.6,3728.2,0.229991]
[1641246935125,20.5056,3729.6,3728.4,0.001]
[1641246935928,20.5056,3729.6,3728.8,2.00479]
[1641246936127,2.00479,3729.7,3728.8,2.00479]
[1641246936330,1.499,3729.5,3728.8,2.00479]
[1641246936528,2.2124,3729.5,3728.8,2.00479]
[1641246936728,1.499,3729.1,3728.4,0.001]
[1641246936931,1.499,3728.6,3728.4,0.001]
[1641246937130,2.3208,3728.6,3728.0,2.00479]
[1641246937330,1.499,3728.4,3728.0,2.00479]
[1641246938429,1.499,3728.4,3728.0,1e-08]
[1641246938632,1.499,3728.4,3727.7,2.00479]
[1641246938830,0.9800365,3728.5,3727.7,2.00479]
[1641246939030,1.499,3728.4,3727.7,2.00479]
[1641246939234,0.9800365,3728.5,3726.7,18.7347]
[1641246939235,1.499,3728.0,3726.7,18.7347]
[1641246939437,1.499,3727.7,3726.3,1.34094993]
[1641246939633,2.188,3727.7,3726.3,1.34094993]
[1641246940031,1.499,3727.1,3726.0,2.00479]
[1641246941434,1.499,3726.9,3726.0,2.00479]
[1641246941634,2.0296,3726.9,3726.0,2.00479]
[1641246942037,2.00479,3726.7,3726.0,2.00479]
[1641246944737,2.00479,3726.7,3726.1,0.128157]
[1641246946739,2.00479,3727.2,3726.6,1.34078452]
[1641246947539,2.00479,3727.2,3726.1,0.128157]
[1641246948140,2.00479,3727.6,3726.7,2.00479]
[1641246949746,2.00479,3727.6,3726.7,2.50849]
[1641246950443,2.00479,3727.6,3727.0,1.34069644]
[1641246950650,2.00479,3727.6,3726.7,2.50849]
[1641246950942,2.00479,3727.6,3726.8,0.128157]
[1641246954950,2.00479,3727.6,3726.7,2.00479]
[1641246955148,2.60729,3727.6,3726.7,2.00479]
[1641246955548,1.499,3727.5,3726.7,2.00479]
[1641246955950,2.60729,3727.6,3726.7,2.00479]
[1641246957151,2.60729,3727.6,3726.8,0.128157]
[1641246958153,2.60729,3727.6,3726.7,2.00479]
[1641246959255,1.499,3727.4,3726.0,2.00479]
[1641246960359,2.00479,3727.0,3726.0,2.00479]
[1641246963362,0.40687017,3726.9,3726.5,1.45204722]
[1641246963960,3.19922213,3727.0,3726.5,1.45204722]
[1641246964160,2.00479,3727.0,3726.0,2.00479]
[1641246969669,1.499,3726.9,3726.0,2.00479]
[1641246971072,2.52779,3727.0,3726.0,2.00479]
[1641246971275,2.00479,3727.0,3726.0,2.00479]
[1641246971771,3.50379,3727.0,3726.0,2.00479]
[1641246972171,2.00479,3727.0,3726.0,2.00479]
[1641246972572,1.499,3726.9,3726.0,2.00479]
[1641246974374,2.00479,3727.0,3726.0,2.00479]
[1641246974776,2.00479,3727.0,3726.0,3.34585142]
[1641246979284,2.00479,3727.0,3726.0,2.00479]
[1641246980888,2.00479,3727.0,3726.0,3.3458748]
[1641246983189,2.00479,3727.0,3726.0,2.00479]
[1641246983891,2.00479,3727.0,3726.0,3.34585322]
[1641246986093,2.00479,3727.0,3726.0,2.00479]
[1641246987394,1.19367045,3726.9,3726.0,2.00479]
[1641246988297,1.19367045,3726.9,3726.1,0.128157]
[1641246990697,2.00479,3727.0,3726.1,0.128157]
[1641246993199,0.40660761,3726.9,3726.1,0.128157]
[1641246993401,0.40660761,3726.9,3726.4,1.45204722]
[1641246994000,0.40660761,3726.9,3726.1,0.128157]
[1641246994001,0.40660761,3726.9,3726.5,1.45204722]
[1641246995906,2.00479,3727.0,3726.5,1.45204722]
[1641246997506,2.00479,3727.0,3726.6,1.45204722]
[1641246998408,2.00479,3727.0,3726.7,1.45204722]
[1641246999206,2.00479,3727.0,3726.6,1.45204722]
[1641246999809,2.15419011,3727.3,3726.6,1.45204722]
[1641247000911,2.00479,3727.0,3726.6,1.45204722]
[1641247001809,0.5131,3727.1,3726.6,1.45204722]
[1641247002910,2.00479,3727.0,3726.6,1.45204722]
[1641247006517,2.00479,3727.0,3726.7,1.45204722]
[1641247007714,2.00479,3727.0,3726.8,0.229991]
[1641247009814,2.00479,3727.0,3726.6,1.45204722]
[1641247010314,2.00479,3727.0,3726.7,1.45204722]
[1641247010516,2.00479,3727.0,3726.8,0.229991]
[1641247010716,2.00479,3727.0,3726.7,1.45204722]
[1641247011017,2.00479,3727.0,3726.6,1.45204722]
[1641247014022,2.00479,3727.0,3726.7,1.45204722]
[1641247014226,2.00479,3727.0,3726.8,0.229991]
[1641247016224,2.00479,3727.0,3726.6,1.45204722]
[1641247016727,2.00479,3727.0,3726.1,2.132947]
[1641247016728,2.00479,3727.0,3726.7,1.45204722]
[1641247017329,2.00479,3727.0,3726.8,0.229991]
[1641247018431,2.00479,3727.0,3726.9,0.128157]
[1641247020234,2.00479,3727.0,3726.9,0.358148]
[1641247020534,2.00479,3727.0,3726.9,0.128157]
[1641247021235,2.00479,3727.0,3726.6,1.45204722]
[1641247021433,1.19819262,3726.9,3726.6,1.45204722]
[1641247021633,1.19819262,3726.9,3726.7,1.45204722]
[1641247021834,2.69719262,3726.9,3726.7,1.45204722]
[1641247022032,1.19819262,3726.9,3726.7,1.45204722]
[1641247022735,1.19819262,3726.9,3726.3,1.45204722]
[1641247025437,1.19819262,3726.9,3726.4,1.45204722]
[1641247026539,0.4066013,3726.8,3726.2,1.45204722]
[1641247027638,2.39262475,3726.9,3726.2,1.45204722]
[1641247027840,1.19819262,3726.9,3726.2,1.45204722]
[1641247031747,1.19819262,3726.9,3726.3,1.45204722]
[1641247035051,1.19819262,3726.9,3726.2,1.45204722]
[1641247038557,1.19819262,3726.9,3726.1,3.45683722]
[1641247039856,1.19819262,3726.9,3726.1,3.58499422]
[1641247040557,1.19819262,3726.9,3726.2,1.45204722]
[1641247041360,2.00479,3727.0,3726.3,1.45204722]
[1641247042461,2.00479,3727.0,3726.4,1.45204722]
[1641247044566,2.00479,3727.0,3726.5,1.45204722]
[1641247050276,2.00479,3727.0,3726.4,1.45204722]
[1641247051079,2.00479,3727.0,3726.5,1.45204722]
[1641247056585,1.19443213,3727.4,3726.5,1.45204722]
[1641247057985,2.00479,3727.1,3726.5,1.45204722]
[1641247060489,2.00479,3727.1,3726.5,2.79295399]
[1641247062893,2.00479,3727.1,3726.6,1.45204722]
[1641247064193,2.00479,3727.5,3726.6,1.45204722]
[1641247064994,2.00479,3727.5,3726.5,1.34090677]
[1641247064995,2.00479,3727.5,3726.8,1.45204722]
[1641247065396,2.00479,3727.5,3726.9,0.128157]
[1641247067097,2.00479,3727.5,3726.9,1.58020422]
[1641247067498,2.00479,3727.5,3726.9,1.45204722]
[1641247068999,2.00479,3727.5,3726.8,2.00479]
[1641247069198,2.70409,3727.5,3726.8,2.00479]
[1641247074909,2.70409,3727.5,3726.8,2.132947]
[1641247078913,2.00479,3727.5,3726.8,2.898347]
[1641247080117,2.00479,3727.5,3726.9,1.45204722]
[1641247084421,2.00479,3727.5,3726.8,3.58499422]
[1641247085423,2.00479,3727.5,3726.8,4.92576256]
[1641247085923,1.19443213,3727.9,3726.8,6.42576256]
[1641247086123,1.19443213,3727.9,3726.8,4.92576256]
[1641247086323,1.19443213,3727.9,3727.3,2.00479]
[1641247086723,2.00479,3728.0,3727.3,2.00479]
[1641247087526,2.00479,3728.0,3727.3,3.3453804]
[1641247087727,0.41386146,3727.8,3727.4,1.45204722]
[1641247088025,1.60829359,3727.8,3727.4,1.45204722]
[1641247088725,1.19443213,3727.8,3727.5,1.45204722]
[1641247088927,0.41386146,3727.9,3727.6,0.229991]
[1641247089126,0.41386146,3727.9,3727.6,0.358148]
[1641247089725,1.60829359,3727.9,3727.6,0.358148]
[1641247090927,1.60829359,3727.9,3727.6,0.938248]
[1641247091127,0.41386146,3727.9,3727.6,2.39029522]
[1641247094832,0.41386146,3727.9,3727.7,1.45204722]
[1641247095346,0.41386146,3727.9,3727.8,0.229991]
[1641247095531,1.19443213,3728.1,3727.8,0.229991]
[1641247096031,1.19443213,3728.1,3727.7,1.45204722]
[1641247096637,0.41386146,3728.1,3727.8,1.45204722]
[1641247097635,0.41386146,3728.1,3727.7,1.45204722]
[1641247097836,1.499,3728.0,3727.7,1.45204722]
[1641247098034,2.19529359,3728.1,3727.7,1.45204722]
[1641247098441,3.27703493,3728.1,3727.7,1.45204722]
[1641247099237,2.86317347,3728.1,3727.7,1.45204722]
[1641247099739,2.86317347,3728.1,3727.3,2.00479]
[1641247099740,1.66874134,3728.1,3727.3,2.00479]
[1641247102040,3.16774134,3728.1,3727.3,2.00479]
[1641247103147,1.66874134,3728.1,3727.3,2.00479]
[1641247103347,3.16774134,3728.1,3727.3,2.00479]
[1641247103547,1.499,3727.9,3727.3,2.00479]
[1641247103949,1.66874134,3728.1,3726.4,21.08304722]
[1641247103950,3.16774134,3728.1,3726.4,21.08304722]
[1641247104150,1.499,3728.0,3726.4,22.42398636]
[1641247104352,1.66874134,3728.1,3726.4,22.42398636]
[1641247104949,1.66874134,3728.1,3726.4,20.97193914]
[1641247105351,2.00479,3727.2,3726.4,22.97672914]
[1641247105553,2.50829,3727.2,3726.4,23.10488614]
[1641247105751,1.499,3727.1,3726.4,21.63579]
[1641247106152,1.499,3727.1,3726.4,2.00479]
[1641247106553,1.499,3726.8,3726.4,2.00479]
[1641247106753,2.50829,3727.2,3726.3,1.45204722]
[1641247106954,4.96315422,3727.2,3726.3,1.45204722]
[1641247107353,2.00479,3726.4,3726.3,1.45204722]
[1641247107553,2.61079,3726.4,3726.3,1.45204722]
[1641247107753,1.13113178,3726.3,3726.0,0.398]
[1641247108253,1.13113178,3726.3,3726.1,0.229991]
[1641247108456,2.00479,3726.4,3726.1,0.229991]
[1641247110164,2.9039296,3727.2,3726.1,1.055791]
[1641247110759,2.00479,3727.2,3726.1,1.055791]
[1641247113257,1.62045506,3727.1,3726.1,1.055791]
[1641247115558,1.62045506,3727.1,3726.1,2.555791]
[1641247115759,1.62045506,3727.1,3727.0,1.34071082]
[1641247115959,1.62045506,3727.1,3727.0,0.5958]
[1641247116158,1.65666326,3728.0,3727.0,0.825791]
[1641247117362,20.41358702,3728.7,3727.0,0.825791]
[1641247117560,1.21146757,3727.6,3727.2,3.48594884]
[1641247119063,1.21146757,3727.6,3727.3,1.48115884]
[1641247119263,0.42595206,3728.0,3727.3,1.48115884]
[1641247119264,1.21146757,3727.8,3727.3,1.48115884]
[1641247121166,1.21146757,3727.9,3727.4,1.48115884]
[1641247122669,1.21146757,3727.8,3727.4,1.48115884]
[1641247122866,2.51045132,3727.8,3727.4,1.48115884]
[1641247123669,2.51045132,3727.8,3727.2,3.48594884]
[1641247123869,1.21146757,3727.6,3727.2,3.48594884]
[1641247124972,1.21146757,3727.6,3727.2,2.00479]
[1641247125170,1.21146757,3727.5,3727.2,2.00479]
[1641247125369,1.87806757,3727.5,3727.2,2.00479]
[1641247126372,1.21146757,3727.4,3727.2,2.00479]
[1641247127474,1.21146757,3727.3,3727.2,2.00479]
[1641247127672,2.33698041,3727.3,3727.2,2.00479]
[1641247128274,2.33698041,3727.3,3727.2,2.234781]
[1641247128673,1.12551284,3727.3,3727.2,2.234781]
[1641247129273,1.12551284,3727.3,3727.2,2.00479]
[1641247129574,1.12551284,3727.3,3727.2,3.48594884]
[1641247129977,1.12551284,3727.3,3727.2,3.71593984]
[1641247130174,1.12551284,3727.3,3727.2,3.48594884]
[1641247131074,1.12551284,3727.3,3727.2,3.71593984]
[1641247132580,1.21146757,3727.6,3727.2,3.71593984]
[1641247133379,1.21146757,3727.6,3727.2,2.234781]
[1641247133578,1.21015193,3727.8,3727.2,2.234781]
[1641247133980,1.21015193,3727.8,3727.2,2.00479]
[1641247134578,2.70915193,3727.8,3727.2,2.00479]
[1641247135581,0.42517188,3727.7,3727.2,2.00479]
[1641247135781,2.42433945,3727.7,3727.2,2.00479]
[1641247136681,0.42517188,3727.6,3727.2,2.00479]
[1641247136882,1.63663945,3727.6,3727.2,2.00479]
[1641247138282,1.63663945,3727.6,3726.9,2.00479]
[1641247138481,1.499,3727.2,3726.9,2.00479]
[1641247138681,0.70416005,3727.1,3726.9,2.00479]
[1641247140886,3.21625757,3727.5,3726.9,2.00479]
[1641247141288,1.499,3727.3,3726.9,2.00479]
[1641247142588,3.21625757,3727.5,3726.9,2.00479]
[1641247142791,3.21625757,3727.5,3726.3,3.48594884]
[1641247143390,2.00479,3727.5,3726.5,1.48115884]
[1641247150296,0.42518484,3727.4,3726.5,1.48115884]
[1641247152001,5.3660412,3727.2,3726.4,1.48115884]
[1641247153102,0.82907249,3727.1,3726.4,1.48115884]
[1641247153699,0.82907249,3727.1,3726.3,2.00479]
[1641247160310,0.82907249,3727.1,3726.4,0.128157]
[1641247161309,0.82907249,3727.1,3726.3,2.00479]
[1641247162109,3.21625757,3727.5,3726.3,2.00479]
[1641247162812,1.21146757,3727.4,3726.3,2.00479]
[1641247163013,1.499,3727.3,3726.3,2.00479]
[1641247164112,2.25806379,3727.3,3726.3,2.00479]
[1641247164516,2.25806379,3727.3,3726.2,1.48115884]
[1641247165515,0.42842156,3727.2,3726.1,1.48115884]
[1641247165918,2.43321156,3727.2,3726.3,2.00479]
[1641247167719,2.00479,3727.2,3726.3,2.00479]
[1641247170525,2.00479,3727.2,3726.4,0.128157]
[1641247170726,2.00479,3727.2,3726.3,2.00479]
[1641247172726,1.499,3727.1,3726.3,2.00479]
[1641247172928,2.00479,3727.2,3726.3,2.00479]
[1641247173331,0.4284416,3727.1,3726.3,2.00479]
[1641247173928,1.499,3726.8,3726.3,2.00479]
[1641247174127,1.499,3726.4,3726.0,0.398]
[1641247174328,1.34167137,3726.5,3726.0,0.398]
[1641247174528,2.16896334,3726.4,3726.0,0.398]
[1641247175831,3.89649385,3726.3,3726.0,0.398]
[1641247176032,16.69879029,3726.3,3726.0,0.398]
[1641247177030,18.19779029,3726.3,3726.0,0.398]
[1641247177433,18.19779029,3726.3,3725.5,1.48115884]
[1641247177634,1.499,3726.0,3725.3,1.48115884]
[1641247177833,2.00479,3725.4,3725.3,1.48115884]
[1641247178034,2.00479,3725.4,3725.0,0.75749355]
[1641247179035,2.00479,3725.4,3724.5,4.96710767]
[1641247179635,2.00479,3725.4,3724.5,2.00479]
[1641247179636,3.50379,3725.4,3724.5,2.00479]
[1641247179835,2.00479,3724.8,3724.0,19.70731767]
[1641247180038,2.69669,3724.8,3724.0,2.96231767]
[1641247180835,3.93981588,3724.8,3724.0,2.96231767]
[1641247182237,5.43881588,3724.8,3724.0,2.96231767]
[1641247182437,1.499,3724.6,3724.0,2.96231767]
[1641247183239,1.499,3724.6,3723.6,2.76245382]
[1641247183639,25.60595195,3724.2,3723.6,2.76245382]
[1641247183840,2.00479,3724.1,3723.6,2.76245382]
[1641247184039,2.98445089,3724.1,3723.6,2.76245382]
[1641247184441,2.98445089,3724.1,3723.6,0.75766382]
[1641247184642,1.499,3723.7,3723.2,3.70289709]
[1641247184946,1.499,3723.7,3722.9,2.00479]
[1641247184947,1.91437116,3723.7,3723.4,0.7577626]
[1641247185143,3.41337116,3723.7,3722.9,2.9661294]
[1641247185345,2.0707,3723.7,3722.9,2.9661294]
[1641247185844,1.499,3723.3,3722.9,2.9661294]
[1641247186043,2.00479,3723.0,3722.9,2.9661294]
[1641247187045,2.00479,3723.0,3722.1,2.00479]
[1641247189546,13.58479,3723.0,3722.1,2.00479]
[1641247189848,2.70761218,3722.9,3722.1,2.00479]
[1641247190046,3.49881218,3722.9,3722.1,2.00479]
[1641247192350,4.99781218,3722.9,3722.1,2.00479]
[1641247192753,3.49881218,3722.9,3722.1,2.00479]
[1641247193151,0.7912,3722.9,3722.1,2.00479]
[1641247195355,5.26386075,3723.0,3722.1,2.00479]
[1641247196152,16.84386075,3723.0,3722.1,2.00479]
[1641247197353,5.26386075,3723.0,3722.1,2.00479]
[1641247203959,5.26386075,3723.0,3721.7,17.84279]
[1641247204158,2.00479,3722.3,3721.7,17.84279]
[1641247204362,2.51219,3722.3,3721.7,2.132947]
[1641247204560,2.51219,3722.3,3721.7,2.00479]
[1641247208563,4.01119,3722.3,3721.7,2.00479]
[1641247208764,1.17787407,3722.1,3721.7,2.00479]
[1641247208964,1.067252,3722.0,3721.7,2.00479]
[1641247210769,1.34321582,3722.2,3721.8,0.229991]
[1641247211565,2.51219,3722.3,3721.8,0.229991]
[1641247213372,2.00479,3722.3,3721.8,0.229991]
[1641247213676,0.51783172,3722.2,3721.9,1.46676246]
[1641247213873,0.51783172,3722.2,3722.0,0.229991]
[1641247214477,1.21146757,3722.3,3722.0,0.229991]
[1641247214675,1.10961081,3722.5,3722.0,0.229991]
[1641247215077,1.21146757,3722.6,3722.0,0.229991]
[1641247215276,6.757e-05,3722.6,3722.1,1.5]
[1641247215478,3.82199136,3723.1,3722.3,1.5]
[1641247215675,3.82199136,3723.1,3722.4,0.128157]
[1641247215877,1.81720136,3723.1,3722.5,1.5]
[1641247216078,1.81720136,3723.1,3722.8,2.00479]
[1641247216279,1.81720136,3723.1,3722.9,0.229991]
[1641247216677,3.82199136,3723.7,3722.9,0.229991]
[1641247217079,3.82199136,3723.7,3722.8,2.00479]
[1641247217279,4.57879136,3723.7,3722.8,2.00479]
[1641247217678,1.499,3723.5,3722.5,2.00479]
[1641247218078,2.00479,3723.1,3722.5,2.00479]
[1641247219484,0.51769969,3723.0,3722.5,2.00479]
[1641247225791,0.51769969,3723.0,3722.6,1.49482181]
[1641247226992,1.21298525,3722.9,3722.5,3.49961181]
[1641247227893,1.81720136,3723.4,3722.5,3.49961181]
[1641247228091,1.81720136,3723.4,3722.5,4.09751181]
[1641247228291,0.50337714,3722.8,3722.6,1.49482181]
[1641247228491,2.119e-05,3723.0,3722.7,0.229991]
[1641247229595,1.81720136,3723.5,3722.7,0.229991]
[1641247229994,2.00479,3723.7,3722.7,0.229991]
[1641247230195,2.00479,3723.7,3723.1,2.00479]
[1641247230395,2.00479,3723.7,3723.2,0.128157]
[1641247231398,1.81720136,3723.9,3723.2,0.128157]
[1641247232195,1.81720136,3723.9,3723.5,2.00479]
[1641247232797,1.81720136,3724.0,3723.5,2.00479]
[1641247233497,2.85486926,3724.2,3723.5,2.00479]
[1641247237604,1.51586852,3724.0,3723.5,2.00479]
[1641247237802,2.28046852,3724.0,3723.5,2.00479]
[1641247239704,1.21270307,3723.7,3723.5,2.00479]